[Event "Titled Tuesday Blitz November 22 Early 2022"]
[White "Kuznetsov, Mikhail"]
[Black "Beerdsen, Thomas"]
[WhiteFideId "4117190"]
[BlackFideId "1030108"]
[WhiteElo "1981"]
[BlackElo "2567"]
[Result "1/2-1/2"]
[Round "01"]
[TimeControl "180+1"]
[Date "2022.11.23"]
[WhiteClock "0:00:12"]
[BlackClock "0:00:19"]

1. Nf3 {[%clk 0:02:58]}  h6 {[%clk 0:02:58]} 2. g3 {[%clk 0:02:57]}  g5 {[%clk 0:02:58]} 3. Bg2 {[%clk 0:02:56]}  Bg7 {[%clk 0:02:59]} 4. d4 {[%clk 0:02:54]}  c5 {[%clk 0:02:59]} 5. dxc5 {[%clk 0:02:51]}  Nf6 {[%clk 0:02:55]} 6. O-O {[%clk 0:02:50]}  O-O {[%clk 0:02:53]} 7. Nbd2 {[%clk 0:02:49]}  Nc6 {[%clk 0:02:51]} 8. c3 {[%clk 0:02:46]}  a5 {[%clk 0:02:49]} 9. a4 {[%clk 0:02:45]}  b6 {[%clk 0:02:38]} 10. cxb6 {[%clk 0:02:43]}  Qxb6 {[%clk 0:02:39]} 11. Nc4 {[%clk 0:02:42]}  Qc5 {[%clk 0:02:38]} 12. Na3 {[%clk 0:02:41]}  Ba6 {[%clk 0:02:35]} 13. Be3 {[%clk 0:02:40]}  Qf5 {[%clk 0:02:34]} 14. Nd4 {[%clk 0:02:16]}  Nxd4 {[%clk 0:02:34]} 15. Bxd4 {[%clk 0:02:17]}  Rab8 {[%clk 0:02:34]} 16. Nb5 {[%clk 0:02:08]}  Bxb5 {[%clk 0:02:26]} 17. axb5 {[%clk 0:02:09]}  Qxb5 {[%clk 0:02:26]} 18. Ra2 {[%clk 0:02:05]}  d6 {[%clk 0:02:23]} 19. Qd3 {[%clk 0:02:02]}  Qb3 {[%clk 0:02:22]} 20. Rfa1 {[%clk 0:01:53]}  Nd7 {[%clk 0:02:18]} 21. Bxg7 {[%clk 0:01:49]}  Kxg7 {[%clk 0:02:18]} 22. Bd5 {[%clk 0:01:44]}  Qb6 {[%clk 0:02:16]} 23. Rb1 {[%clk 0:01:34]}  Ne5 {[%clk 0:02:13]} 24. Qd4 {[%clk 0:01:29]}  e6 {[%clk 0:02:13]} 25. Bg2 {[%clk 0:01:28]}  Qxd4 {[%clk 0:02:05]} 26. cxd4 {[%clk 0:01:29]}  Nc4 {[%clk 0:02:06]} 27. Ra4 {[%clk 0:01:28]}  Nd2 {[%clk 0:02:03]} 28. Re1 {[%clk 0:01:23]}  Rxb2 {[%clk 0:02:00]} 29. Rxa5 {[%clk 0:01:23]}  d5 {[%clk 0:01:57]} 30. e3 {[%clk 0:01:21]}  Rc8 {[%clk 0:01:55]} 31. Raa1 {[%clk 0:01:09]}  g4 {[%clk 0:01:42]} 32. Re2 {[%clk 0:01:07]}  Rcc2 {[%clk 0:01:37]} 33. Rd1 {[%clk 0:01:06]}  h5 {[%clk 0:01:34]} 34. Kh1 {[%clk 0:01:00]}  Kh6 {[%clk 0:01:26]} 35. Rde1 {[%clk 0:00:58]}  Kg5 {[%clk 0:01:24]} 36. Kg1 {[%clk 0:00:58]}  h4 {[%clk 0:01:24]} 37. gxh4+ {[%clk 0:00:55]}  Kxh4 {[%clk 0:01:25]} 38. Bh1 {[%clk 0:00:56]}  Ra2 {[%clk 0:01:00]} 39. Bg2 {[%clk 0:00:55]}  Kg5 {[%clk 0:00:58]} 40. Bh1 {[%clk 0:00:54]}  Kf5 {[%clk 0:00:38]} 41. Bg2 {[%clk 0:00:53]}  Ne4 {[%clk 0:00:35]} 42. Rxc2 {[%clk 0:00:52]}  Rxc2 {[%clk 0:00:35]} 43. Bxe4+ {[%clk 0:00:49]}  Kxe4 {[%clk 0:00:36]} 44. Kg2 {[%clk 0:00:50]}  f5 {[%clk 0:00:33]} 45. Kg3 {[%clk 0:00:48]}  Rc3 {[%clk 0:00:33]} 46. Kg2 {[%clk 0:00:38]}  Ra3 {[%clk 0:00:31]} 47. Kg3 {[%clk 0:00:38]}  Ra8 {[%clk 0:00:23]} 48. Kg2 {[%clk 0:00:37]}  Rh8 {[%clk 0:00:23]} 49. Rc1 {[%clk 0:00:25]}  Rh6 {[%clk 0:00:17]} 50. Re1 {[%clk 0:00:17]}  Rf6 {[%clk 0:00:16]} 51. h3 {[%clk 0:00:16]}  gxh3+ {[%clk 0:00:16]} 52. Kxh3 {[%clk 0:00:16]}  f4 {[%clk 0:00:16]} 53. exf4+ {[%clk 0:00:12]}  Kxd4 {[%clk 0:00:17]} 54. Kg4 {[%clk 0:00:12]}  Kc3 {[%clk 0:00:16]} 55. Kf3 {[%clk 0:00:11]}  d4 {[%clk 0:00:14]} 56. Ke4 {[%clk 0:00:10]}  d3 {[%clk 0:00:13]} 57. Re3 {[%clk 0:00:10]}  Kd2 {[%clk 0:00:10]} 58. Rxd3+ {[%clk 0:00:10]}  Ke2 {[%clk 0:00:11]} 59. Ra3 {[%clk 0:00:05]}  Kxf2 {[%clk 0:00:11]} 60. Ra2+ {[%clk 0:00:05]}  Kg3 {[%clk 0:00:11]} 61. Ra3+ {[%clk 0:00:04]}  Kg4 {[%clk 0:00:11]} 62. Ke5 {[%clk 0:00:04]}  Rh6 {[%clk 0:00:10]} 63. Ra4 {[%clk 0:00:04]}  Kf3 {[%clk 0:00:08]} 64. Ra3+ {[%clk 0:00:03]}  Kg4 {[%clk 0:00:08]} 65. Ra4 {[%clk 0:00:04]}  Kg3 {[%clk 0:00:08]} 66. Ra3+ {[%clk 0:00:04]}  Kh4 {[%clk 0:00:09]} 67. Ra4 {[%clk 0:00:04]}  Kh5 {[%clk 0:00:09]} 68. Ra6 {[%clk 0:00:05]}  Kg4 {[%clk 0:00:08]} 69. Ra3 {[%clk 0:00:05]}  Rh5+ {[%clk 0:00:08]} 70. Kxe6 {[%clk 0:00:04]}  Kxf4 {[%clk 0:00:08]} 71. Ra4+ {[%clk 0:00:05]}  Ke3 {[%clk 0:00:09]} 72. Ra3+ {[%clk 0:00:05]}  Kd4 {[%clk 0:00:09]} 73. Ra4+ {[%clk 0:00:06]}  Kc3 {[%clk 0:00:10]} 74. Rf4 {[%clk 0:00:04]}  Kd3 {[%clk 0:00:10]} 75. Rf5 {[%clk 0:00:05]}  Rh6+ {[%clk 0:00:10]} 76. Ke5 {[%clk 0:00:05]}  Ke3 {[%clk 0:00:10]} 77. Rg5 {[%clk 0:00:06]}  Ra6 {[%clk 0:00:10]} 78. Kf5 {[%clk 0:00:06]}  Kf3 {[%clk 0:00:10]} 79. Rg6 {[%clk 0:00:05]}  Ra5+ {[%clk 0:00:10]} 80. Kf6 {[%clk 0:00:06]}  Kf4 {[%clk 0:00:11]} 81. Rg8 {[%clk 0:00:07]}  Ra6+ {[%clk 0:00:11]} 82. Kg7 {[%clk 0:00:07]}  Kg5 {[%clk 0:00:12]} 83. Kf7+ {[%clk 0:00:06]}  Kf5 {[%clk 0:00:12]} 84. Rc8 {[%clk 0:00:07]}  Ra7+ {[%clk 0:00:12]} 85. Ke8 {[%clk 0:00:07]}  Rh7 {[%clk 0:00:10]} 86. Rc6 {[%clk 0:00:07]}  Ke5 {[%clk 0:00:11]} 87. Kd8 {[%clk 0:00:07]}  Kd5 {[%clk 0:00:11]} 88. Rg6 {[%clk 0:00:08]}  Ke5 {[%clk 0:00:11]} 89. Ra6 {[%clk 0:00:08]}  Kd5 {[%clk 0:00:12]} 90. Ke8 {[%clk 0:00:08]}  Ke5 {[%clk 0:00:12]} 91. Rb6 {[%clk 0:00:08]}  Kd5 {[%clk 0:00:13]} 92. Ra6 {[%clk 0:00:08]}  Ke5 {[%clk 0:00:13]} 93. Rb6 {[%clk 0:00:08]}  Ra7 {[%clk 0:00:13]} 94. Rh6 {[%clk 0:00:08]}  Kd5 {[%clk 0:00:14]} 95. Rh5+ {[%clk 0:00:07]}  Ke6 {[%clk 0:00:14]} 96. Rh6+ {[%clk 0:00:08]}  Ke5 {[%clk 0:00:15]} 97. Rh5+ {[%clk 0:00:09]}  Kd6 {[%clk 0:00:15]} 98. Rh6+ {[%clk 0:00:10]}  Ke5 {[%clk 0:00:16]} 99. Rh5+ {[%clk 0:00:10]}  Ke6 {[%clk 0:00:17]} 100. Rh6+ {[%clk 0:00:11]}  Kd5 {[%clk 0:00:18]} 101. Rh5+ {[%clk 0:00:12]}  Kd6 {[%clk 0:00:18]} 102. Rh6+ {[%clk 0:00:12]}  Ke5 {[%clk 0:00:19]} 1/2-1/2


[Site "https://www.chess.com"]

[Event "Titled Tuesday Blitz November 22 Early 2022"]
[White "Lehtosaari, Mauri"]
[Black "Pranav, V"]
[WhiteFideId "501999"]
[BlackFideId "25060783"]
[WhiteElo "2504"]
[BlackElo "2430"]
[Result "0-1"]
[Round "01"]
[TimeControl "180+1"]
[Date "2022.11.22"]
[WhiteClock "0:00:15"]
[BlackClock "0:00:19"]

1. d4 {[%clk 0:02:59]}  Nf6 {[%clk 0:02:59]} 2. Nf3 {[%clk 0:02:56]}  e6 {[%clk 0:02:59]} 3. e3 {[%clk 0:02:54]}  b6 {[%clk 0:02:59]} 4. Bd3 {[%clk 0:02:54]}  Bb7 {[%clk 0:02:59]} 5. O-O {[%clk 0:02:55]}  d5 {[%clk 0:02:59]} 6. b3 {[%clk 0:02:55]}  Bd6 {[%clk 0:03:00]} 7. Bb2 {[%clk 0:02:55]}  O-O {[%clk 0:03:00]} 8. Nbd2 {[%clk 0:02:55]}  c5 {[%clk 0:03:00]} 9. Qe2 {[%clk 0:02:54]}  Nc6 {[%clk 0:02:59]} 10. a3 {[%clk 0:02:50]}  Rc8 {[%clk 0:02:57]} 11. Rac1 {[%clk 0:02:47]}  cxd4 {[%clk 0:02:49]} 12. exd4 {[%clk 0:02:44]}  Ne7 {[%clk 0:02:47]} 13. Ne5 {[%clk 0:02:40]}  Ng6 {[%clk 0:02:46]} 14. f4 {[%clk 0:02:38]}  Bb8 {[%clk 0:02:38]} 15. Rf3 {[%clk 0:02:32]}  Ne8 {[%clk 0:02:04]} 16. Nxg6 {[%clk 0:02:22]}  hxg6 {[%clk 0:02:02]} 17. Qf2 {[%clk 0:02:14]}  Nf6 {[%clk 0:02:01]} 18. Rh3 {[%clk 0:02:11]}  Ne4 {[%clk 0:01:57]} 19. Qe3 {[%clk 0:01:53]}  Nxd2 {[%clk 0:01:24]} 20. Qxd2 {[%clk 0:01:52]}  Qf6 {[%clk 0:01:23]} 21. Rf1 {[%clk 0:01:46]}  Bd6 {[%clk 0:01:18]} 22. g4 {[%clk 0:01:36]}  Qe7 {[%clk 0:01:07]} 23. Qf2 {[%clk 0:01:22]}  f5 {[%clk 0:01:06]} 24. gxf5 {[%clk 0:01:13]}  exf5 {[%clk 0:01:05]} 25. Re1 {[%clk 0:01:09]}  Qf6 {[%clk 0:01:03]} 26. Rhe3 {[%clk 0:01:06]}  Rcd8 {[%clk 0:00:55]} 27. Qg3 {[%clk 0:01:04]}  Bc8 {[%clk 0:00:52]} 28. R1e2 {[%clk 0:00:53]}  Kf7 {[%clk 0:00:48]} 29. a4 {[%clk 0:00:44]}  Rh8 {[%clk 0:00:47]} 30. Rg2 {[%clk 0:00:41]}  Rh4 {[%clk 0:00:45]} 31. Rf3 {[%clk 0:00:40]}  Re8 {[%clk 0:00:40]} 32. Kf1 {[%clk 0:00:38]}  Re4 {[%clk 0:00:31]} 33. Rgf2 {[%clk 0:00:30]}  Rg4 {[%clk 0:00:26]} 34. Qh3 {[%clk 0:00:26]}  Rh4 {[%clk 0:00:25]} 35. Qg3 {[%clk 0:00:26]}  Bd7 {[%clk 0:00:22]} 36. Bc3 {[%clk 0:00:26]}  Rg4 {[%clk 0:00:22]} 37. Qh3 {[%clk 0:00:26]}  Rexf4 {[%clk 0:00:23]} 38. Rxf4 {[%clk 0:00:25]}  Rxf4 {[%clk 0:00:23]} 39. Rxf4 {[%clk 0:00:23]}  Bxf4 {[%clk 0:00:24]} 40. Qh8 {[%clk 0:00:24]}  Be8 {[%clk 0:00:23]} 41. Qh3 {[%clk 0:00:23]}  Bd6 {[%clk 0:00:22]} 42. Qf3 {[%clk 0:00:23]}  Bc6 {[%clk 0:00:22]} 43. Bb5 {[%clk 0:00:23]}  Bb7 {[%clk 0:00:21]} 44. a5 {[%clk 0:00:22]}  bxa5 {[%clk 0:00:20]} 45. Bxa5 {[%clk 0:00:23]}  Qxd4 {[%clk 0:00:20]} 46. Bd3 {[%clk 0:00:20]}  Qa1+ {[%clk 0:00:19]} 47. Be1 {[%clk 0:00:21]}  Bb4 {[%clk 0:00:19]} 48. Qe2 {[%clk 0:00:17]}  Qxe1+ {[%clk 0:00:18]} 49. Qxe1 {[%clk 0:00:18]}  Bxe1 {[%clk 0:00:18]} 50. Kxe1 {[%clk 0:00:19]}  d4 {[%clk 0:00:19]} 51. Kf2 {[%clk 0:00:19]}  Kf6 {[%clk 0:00:18]} 52. Kg3 {[%clk 0:00:19]}  g5 {[%clk 0:00:19]} 53. h3 {[%clk 0:00:19]}  Ke5 {[%clk 0:00:19]} 54. b4 {[%clk 0:00:17]}  Be4 {[%clk 0:00:19]} 55. Kf2 {[%clk 0:00:15]}  Bxd3 {[%clk 0:00:19]} 0-1


[Site "https://www.chess.com"]

[Event "Titled Tuesday Blitz November 22 Early 2022"]
[White "Levine, David"]
[Black "Manelyuk, Daniil"]
[WhiteFideId "2011611"]
[BlackFideId "44173920"]
[WhiteElo "2181"]
[BlackElo "2209"]
[Result "0-1"]
[Round "01"]
[TimeControl "180+1"]
[Date "2022.11.23"]
[WhiteClock "0:00:04"]
[BlackClock "0:00:22"]

1. d4 {[%clk 0:02:59]}  Nf6 {[%clk 0:02:59]} 2. c4 {[%clk 0:02:59]}  c5 {[%clk 0:02:58]} 3. d5 {[%clk 0:02:58]}  b5 {[%clk 0:02:58]} 4. cxb5 {[%clk 0:02:58]}  a6 {[%clk 0:02:58]} 5. f3 {[%clk 0:02:57]}  g6 {[%clk 0:02:46]} 6. e4 {[%clk 0:02:57]}  d6 {[%clk 0:02:46]} 7. Nc3 {[%clk 0:02:57]}  Bg7 {[%clk 0:02:46]} 8. a4 {[%clk 0:02:57]}  O-O {[%clk 0:02:46]} 9. Bc4 {[%clk 0:02:58]}  axb5 {[%clk 0:02:43]} 10. Bxb5 {[%clk 0:02:55]}  Ba6 {[%clk 0:02:43]} 11. Nge2 {[%clk 0:02:55]}  Bxb5 {[%clk 0:02:43]} 12. Nxb5 {[%clk 0:02:53]}  Na6 {[%clk 0:02:43]} 13. O-O {[%clk 0:02:51]}  Qb6 {[%clk 0:02:43]} 14. Nec3 {[%clk 0:02:50]}  Nc7 {[%clk 0:02:41]} 15. Ra3 {[%clk 0:02:34]}  Nxb5 {[%clk 0:02:39]} 16. Nxb5 {[%clk 0:02:33]}  Nd7 {[%clk 0:02:37]} 17. Qc2 {[%clk 0:02:20]}  Rfb8 {[%clk 0:02:34]} 18. Be3 {[%clk 0:02:18]}  Rb7 {[%clk 0:02:20]} 19. Rc1 {[%clk 0:02:12]}  Qa5 {[%clk 0:02:14]} 20. Bd2 {[%clk 0:02:07]}  Qa6 {[%clk 0:02:12]} 21. Bc3 {[%clk 0:02:07]}  Nb6 {[%clk 0:01:51]} 22. Bxg7 {[%clk 0:02:06]}  Kxg7 {[%clk 0:01:52]} 23. b3 {[%clk 0:01:54]}  Nc8 {[%clk 0:01:51]} 24. Rca1 {[%clk 0:01:43]}  Na7 {[%clk 0:01:48]} 25. Nc3 {[%clk 0:01:32]}  Rab8 {[%clk 0:01:45]} 26. f4 {[%clk 0:01:26]}  c4 {[%clk 0:01:24]} 27. Nb5 {[%clk 0:01:05]}  Nxb5 {[%clk 0:01:11]} 28. axb5 {[%clk 0:01:02]}  Qxb5 {[%clk 0:01:02]} 29. bxc4 {[%clk 0:00:38]}  Qc5+ {[%clk 0:00:57]} 30. Kh1 {[%clk 0:00:37]}  Rb2 {[%clk 0:00:55]} 31. Qc3+ {[%clk 0:00:36]}  f6 {[%clk 0:00:52]} 32. h3 {[%clk 0:00:14]}  Qf2 {[%clk 0:00:35]} 33. Qf3 {[%clk 0:00:14]}  Rb1+ {[%clk 0:00:34]} 34. Kh2 {[%clk 0:00:11]}  Qg1+ {[%clk 0:00:32]} 35. Kg3 {[%clk 0:00:10]}  Rxa1 {[%clk 0:00:32]} 36. e5 {[%clk 0:00:05]}  Rxa3 {[%clk 0:00:30]} 37. exf6+ {[%clk 0:00:05]}  exf6 {[%clk 0:00:29]} 38. Qxa3 {[%clk 0:00:04]}  Re8 {[%clk 0:00:22]} 0-1


[Site "https://www.chess.com"]

[Event "Titled Tuesday Blitz November 22 Early 2022"]
[White "Levitan, Caleb Levi"]
[Black "Narayanan, Srinath"]
[WhiteFideId "14332620"]
[BlackFideId "5018420"]
[WhiteElo "1963"]
[BlackElo "2459"]
[Result "1-0"]
[Round "01"]
[TimeControl "180+1"]
[Date "2022.11.23"]
[WhiteClock "0:00:04"]
[BlackClock "0:00:05"]

1. e4 {[%clk 0:02:58]}  c5 {[%clk 0:02:56]} 2. Nf3 {[%clk 0:02:55]}  d6 {[%clk 0:02:55]} 3. d4 {[%clk 0:02:54]}  cxd4 {[%clk 0:02:56]} 4. Nxd4 {[%clk 0:02:55]}  Nf6 {[%clk 0:02:57]} 5. Nc3 {[%clk 0:02:55]}  Nc6 {[%clk 0:02:57]} 6. Bc4 {[%clk 0:02:47]}  e6 {[%clk 0:02:57]} 7. Bb3 {[%clk 0:02:45]}  Be7 {[%clk 0:02:56]} 8. O-O {[%clk 0:02:40]}  Na5 {[%clk 0:02:56]} 9. Be3 {[%clk 0:02:37]}  Nxb3 {[%clk 0:02:55]} 10. axb3 {[%clk 0:02:36]}  O-O {[%clk 0:02:55]} 11. f4 {[%clk 0:02:35]}  a6 {[%clk 0:02:50]} 12. f5 {[%clk 0:02:29]}  e5 {[%clk 0:02:42]} 13. Nf3 {[%clk 0:02:18]}  b5 {[%clk 0:02:40]} 14. Bg5 {[%clk 0:02:15]}  Bb7 {[%clk 0:02:38]} 15. Bxf6 {[%clk 0:02:14]}  Bxf6 {[%clk 0:02:39]} 16. Nd5 {[%clk 0:02:15]}  Rc8 {[%clk 0:02:33]} 17. c3 {[%clk 0:02:09]}  Rc5 {[%clk 0:02:27]} 18. b4 {[%clk 0:01:53]}  Rc4 {[%clk 0:02:22]} 19. Nd2 {[%clk 0:01:50]}  Bxd5 {[%clk 0:02:18]} 20. exd5 {[%clk 0:01:44]}  Qb6+ {[%clk 0:02:18]} 21. Kh1 {[%clk 0:01:43]}  Rh4 {[%clk 0:02:16]} 22. Qf3 {[%clk 0:01:40]}  Be7 {[%clk 0:01:03]} 23. Ne4 {[%clk 0:01:32]}  f6 {[%clk 0:01:03]} 24. g3 {[%clk 0:01:04]}  Rh6 {[%clk 0:01:02]} 25. Rfd1 {[%clk 0:00:54]}  Rc8 {[%clk 0:01:01]} 26. Nf2 {[%clk 0:00:38]}  Rc4 {[%clk 0:00:46]} 27. Ng4 {[%clk 0:00:26]}  Rh3 {[%clk 0:00:45]} 28. Kg2 {[%clk 0:00:23]}  h5 {[%clk 0:00:23]} 29. Nh6+ {[%clk 0:00:16]}  gxh6 {[%clk 0:00:18]} 30. Kxh3 {[%clk 0:00:17]}  Rg4 {[%clk 0:00:19]} 31. Re1 {[%clk 0:00:09]}  Qb7 {[%clk 0:00:17]} 32. Re4 {[%clk 0:00:09]}  Rg5 {[%clk 0:00:18]} 33. Rh4 {[%clk 0:00:08]}  Bf8 {[%clk 0:00:04]} 34. Rxh5 {[%clk 0:00:07]}  Rg7 {[%clk 0:00:05]} 35. Rxh6 {[%clk 0:00:07]}  Rg5 {[%clk 0:00:05]} 36. Rg6+ {[%clk 0:00:06]}  Rxg6 {[%clk 0:00:05]} 37. fxg6 {[%clk 0:00:07]}  Kg7 {[%clk 0:00:05]} 38. Qh5 {[%clk 0:00:06]}  Qc8+ {[%clk 0:00:05]} 39. Kh4 {[%clk 0:00:05]}  Qc4+ {[%clk 0:00:05]} 40. g4 {[%clk 0:00:04]}  f5 {[%clk 0:00:04]} 41. Qh7+ {[%clk 0:00:04]}  Kf6 {[%clk 0:00:05]} 42. Qf7# {[%clk 0:00:04]} 1-0


[Site "https://www.chess.com"]

[Event "Titled Tuesday Blitz November 22 Early 2022"]
[White "Ljukin, Sergei"]
[Black "Ostrovskiy, Aleksandr"]
[WhiteFideId "14102200"]
[BlackFideId "2034239"]
[WhiteElo "2312"]
[BlackElo "2340"]
[Result "0-1"]
[Round "01"]
[TimeControl "180+1"]
[Date "2022.11.23"]
[WhiteClock "0:00:38"]
[BlackClock "0:00:34"]

1. e4 {[%clk 0:02:49]}  d5 {[%clk 0:02:58]} 2. exd5 {[%clk 0:02:49]}  Nf6 {[%clk 0:02:58]} 3. d4 {[%clk 0:02:48]}  Bg4 {[%clk 0:02:57]} 4. Bb5+ {[%clk 0:02:47]}  Nbd7 {[%clk 0:02:56]} 5. f3 {[%clk 0:02:46]}  Bf5 {[%clk 0:02:56]} 6. g4 {[%clk 0:02:47]}  Bg6 {[%clk 0:02:55]} 7. Nc3 {[%clk 0:02:47]}  a6 {[%clk 0:02:51]} 8. Ba4 {[%clk 0:02:47]}  b5 {[%clk 0:02:51]} 9. Bb3 {[%clk 0:02:47]}  Nb6 {[%clk 0:02:48]} 10. a4 {[%clk 0:02:48]}  b4 {[%clk 0:02:34]} 11. a5 {[%clk 0:02:48]}  bxc3 {[%clk 0:02:30]} 12. axb6 {[%clk 0:02:48]}  cxb2 {[%clk 0:02:27]} 13. Bxb2 {[%clk 0:02:48]}  cxb6 {[%clk 0:02:27]} 14. c4 {[%clk 0:02:47]}  e6 {[%clk 0:02:17]} 15. dxe6 {[%clk 0:02:40]}  Bb4+ {[%clk 0:02:13]} 16. Kf2 {[%clk 0:02:39]}  fxe6 {[%clk 0:02:13]} 17. Ne2 {[%clk 0:02:20]}  O-O {[%clk 0:02:00]} 18. Kg2 {[%clk 0:02:19]}  Nxg4 {[%clk 0:01:45]} 19. fxg4 {[%clk 0:02:16]}  Be4+ {[%clk 0:01:45]} 20. Kh3 {[%clk 0:02:05]}  Rf3+ {[%clk 0:01:27]} 21. Ng3 {[%clk 0:02:05]}  Qg5 {[%clk 0:01:22]} 22. Bc1 {[%clk 0:02:01]}  Qg6 {[%clk 0:01:09]} 23. c5 {[%clk 0:01:18]}  Raf8 {[%clk 0:00:46]} 24. Qe2 {[%clk 0:01:13]}  h5 {[%clk 0:00:39]} 25. g5 {[%clk 0:00:38]}  Qf5+ {[%clk 0:00:34]} 0-1


[Site "https://www.chess.com"]

[Event "Titled Tuesday Blitz November 22 Early 2022"]
[White "Malyi, Viacheslav"]
[Black "Rosh Jain"]
[WhiteFideId "14123983"]
[BlackFideId "25789465"]
[WhiteElo "2291"]
[BlackElo "2233"]
[Result "1-0"]
[Round "01"]
[TimeControl "180+1"]
[Date "2022.11.23"]
[WhiteClock "0:01:40"]
[BlackClock "0:00:15"]

1. e4 {[%clk 0:02:59]}  c5 {[%clk 0:02:47]} 2. Nf3 {[%clk 0:02:57]}  d6 {[%clk 0:02:35]} 3. d4 {[%clk 0:02:57]}  cxd4 {[%clk 0:02:36]} 4. Nxd4 {[%clk 0:02:58]}  Nf6 {[%clk 0:02:32]} 5. Nc3 {[%clk 0:02:58]}  a6 {[%clk 0:02:32]} 6. Rg1 {[%clk 0:02:58]}  e5 {[%clk 0:02:30]} 7. Nb3 {[%clk 0:02:58]}  Be7 {[%clk 0:02:30]} 8. g4 {[%clk 0:02:59]}  Be6 {[%clk 0:02:30]} 9. g5 {[%clk 0:02:59]}  Nfd7 {[%clk 0:02:30]} 10. Be3 {[%clk 0:03:00]}  Nc6 {[%clk 0:02:28]} 11. Qd2 {[%clk 0:03:00]}  Nb6 {[%clk 0:02:21]} 12. Nd5 {[%clk 0:02:52]}  Bxd5 {[%clk 0:01:59]} 13. exd5 {[%clk 0:02:53]}  Nb8 {[%clk 0:01:59]} 14. Na5 {[%clk 0:02:43]}  Qc7 {[%clk 0:01:57]} 15. O-O-O {[%clk 0:02:42]}  N8d7 {[%clk 0:01:57]} 16. Kb1 {[%clk 0:02:42]}  Rc8 {[%clk 0:01:56]} 17. h4 {[%clk 0:02:41]}  Nc5 {[%clk 0:01:38]} 18. Rg4 {[%clk 0:02:30]}  Qd7 {[%clk 0:01:05]} 19. Be2 {[%clk 0:02:22]}  Nca4 {[%clk 0:00:49]} 20. Rb4 {[%clk 0:02:15]}  Qc7 {[%clk 0:00:42]} 21. h5 {[%clk 0:02:04]}  Nc5 {[%clk 0:00:27]} 22. Bg4 {[%clk 0:01:56]}  Rb8 {[%clk 0:00:24]} 23. Be2 {[%clk 0:01:56]}  Nxd5 {[%clk 0:00:16]} 24. Qxd5 {[%clk 0:01:50]}  Qxa5 {[%clk 0:00:15]} 25. Rg4 {[%clk 0:01:40]} 1-0


[Site "https://www.chess.com"]

[Event "Titled Tuesday Blitz November 22 Early 2022"]
[White "Martin, Lewis"]
[Black "Lamaze, Simon"]
[WhiteFideId "410551"]
[BlackFideId "36069264"]
[WhiteElo "2145"]
[BlackElo "2272"]
[Result "0-1"]
[Round "01"]
[TimeControl "180+1"]
[Date "2022.11.23"]
[WhiteClock "0:00:20"]
[BlackClock "0:01:26"]

1. e4 {[%clk 0:03:00]}  c5 {[%clk 0:02:59]} 2. Nf3 {[%clk 0:03:01]}  d6 {[%clk 0:02:59]} 3. d4 {[%clk 0:03:01]}  cxd4 {[%clk 0:02:59]} 4. Nxd4 {[%clk 0:03:02]}  Nf6 {[%clk 0:02:58]} 5. Nc3 {[%clk 0:03:03]}  Bd7 {[%clk 0:02:59]} 6. g3 {[%clk 0:03:00]}  Nc6 {[%clk 0:02:58]} 7. Nde2 {[%clk 0:02:56]}  g6 {[%clk 0:02:57]} 8. Bg2 {[%clk 0:02:56]}  Bg7 {[%clk 0:02:58]} 9. O-O {[%clk 0:02:55]}  O-O {[%clk 0:02:58]} 10. h3 {[%clk 0:02:55]}  Rb8 {[%clk 0:02:55]} 11. Be3 {[%clk 0:02:51]}  b5 {[%clk 0:02:54]} 12. f4 {[%clk 0:02:42]}  b4 {[%clk 0:02:45]} 13. Nd5 {[%clk 0:02:42]}  Nxd5 {[%clk 0:02:44]} 14. exd5 {[%clk 0:02:43]}  Na5 {[%clk 0:02:44]} 15. Bd4 {[%clk 0:02:39]}  Bb5 {[%clk 0:02:37]} 16. Bxg7 {[%clk 0:02:36]}  Kxg7 {[%clk 0:02:36]} 17. Qd4+ {[%clk 0:02:31]}  f6 {[%clk 0:02:34]} 18. Rfe1 {[%clk 0:02:26]}  Bxe2 {[%clk 0:02:31]} 19. Rxe2 {[%clk 0:02:25]}  Rb7 {[%clk 0:02:31]} 20. Rae1 {[%clk 0:02:22]}  Rf7 {[%clk 0:02:30]} 21. Be4 {[%clk 0:02:05]}  Kf8 {[%clk 0:02:28]} 22. Bd3 {[%clk 0:02:02]}  Qb6 {[%clk 0:02:27]} 23. Qxb6 {[%clk 0:01:59]}  Rxb6 {[%clk 0:02:28]} 24. h4 {[%clk 0:01:56]}  Nb7 {[%clk 0:02:24]} 25. f5 {[%clk 0:01:39]}  Rg7 {[%clk 0:02:17]} 26. fxg6 {[%clk 0:01:37]}  hxg6 {[%clk 0:02:18]} 27. Kh2 {[%clk 0:01:15]}  Nc5 {[%clk 0:02:17]} 28. Bc4 {[%clk 0:01:14]}  a5 {[%clk 0:02:14]} 29. b3 {[%clk 0:01:11]}  Rb7 {[%clk 0:02:07]} 30. Rf2 {[%clk 0:01:06]}  Kf7 {[%clk 0:02:01]} 31. Kh3 {[%clk 0:01:05]}  Rh7 {[%clk 0:01:57]} 32. g4 {[%clk 0:01:04]}  Nd7 {[%clk 0:01:43]} 33. g5 {[%clk 0:00:59]}  Ne5 {[%clk 0:01:40]} 34. gxf6 {[%clk 0:00:59]}  exf6 {[%clk 0:01:41]} 35. Ref1 {[%clk 0:00:58]}  f5 {[%clk 0:01:41]} 36. Rf4 {[%clk 0:00:45]}  Kf6 {[%clk 0:01:39]} 37. Kg3 {[%clk 0:00:38]}  Rbc7 {[%clk 0:01:36]} 38. R1f2 {[%clk 0:00:33]}  Rh8 {[%clk 0:01:30]} 39. Be2 {[%clk 0:00:32]}  Rc3+ {[%clk 0:01:29]} 40. Bf3 {[%clk 0:00:28]}  g5 {[%clk 0:01:29]} 41. hxg5+ {[%clk 0:00:28]}  Kxg5 {[%clk 0:01:30]} 42. Rd4 {[%clk 0:00:25]}  f4+ {[%clk 0:01:25]} 43. Rxf4 {[%clk 0:00:23]}  Rh3+ {[%clk 0:01:25]} 44. Kxh3 {[%clk 0:00:22]}  Kxf4 {[%clk 0:01:25]} 45. Kg2 {[%clk 0:00:22]}  Rxf3 {[%clk 0:01:26]} 46. Rxf3+ {[%clk 0:00:20]}  Nxf3 {[%clk 0:01:26]} 0-1


[Site "https://www.chess.com"]